fUSD/lending_fUSD_20250301
["ID","MTS","AMOUNT","RATE_DAILY","PERIOD"]
[354933370,1740831042681,-1120.61,0.00027397,2]
[354933372,1740831042690,-1120.61,0.00027397,2]
[354933374,1740831042700,-1120.61,0.00027397,2]
[354933376,1740831042709,-1120.61,0.00027397,2]
[354933378,1740831042719,-511.69194825,0.00027397,2]
[354933380,1740831042729,-500.0,0.00027397,2]
[354933382,1740831042738,-1120.61,0.00027397,2]
[354933384,1740831042748,-500.0,0.00027397,2]
[354933386,1740831042757,-1120.61,0.00027397,2]
[354933388,1740831042766,-538.98256343,0.00027397,2]
[354933390,1740831042776,-1120.61,0.00027397,2]
[354933392,1740831042786,-1120.61,0.00027397,2]
[354933394,1740831042795,-513.16925561,0.00027397,2]
[354933397,1740831042805,-1120.61,0.00027397,2]
[354933400,1740831042815,-1120.61,0.00027397,2]
[354933402,1740831042824,-1120.61,0.00027397,2]
[354933404,1740831042833,-513.05131934,0.00027397,2]
[354933406,1740831042843,-500.0,0.00027397,2]
[354933408,1740831042852,-502.51416349,0.00027397,2]
[354933410,1740831042861,-500.0,0.00027397,2]
[354933412,1740831042871,-1361.35,0.00027397,2]
[354933414,1740831042880,-500.0,0.00027397,2]
[354933416,1740831042890,-2096.36,0.00027397,2]
[354933418,1740831042899,-1633.38,0.00027397,2]
[354933420,1740831042909,-503.82069902,0.00027397,2]
[354933422,1740831042918,-500.0,0.00027397,2]
[354933424,1740831042929,-500.0,0.00027397,2]
[354933426,1740831042939,-907.88,0.00027397,2]
[354933428,1740831042948,-500.0,0.00027397,2]
[354933430,1740831042958,-509.9019919,0.00027397,2]
[354933432,1740831042968,-500.0,0.00027397,2]
[354933434,1740831042977,-506.85586537,0.00027397,2]
[354933437,1740831042986,-500.0,0.00027397,2]
[354933440,1740831042996,-500.0,0.00027397,2]
[354933443,1740831043005,-500.0,0.00027397,2]
[354933446,1740831043015,-500.0,0.00027397,2]
[354933449,1740831043024,-500.0,0.00027397,2]
[354933452,1740831043034,-500.0,0.00027397,2]
[354933455,1740831043043,-678.14,0.00027397,2]
[354933458,1740831043053,-500.0,0.00027397,2]
[354933461,1740831043063,-500.0,0.00027397,2]
[354933464,1740831043073,-500.0,0.00027397,2]
[354933467,1740831043082,-508.40121082,0.00027397,2]
[354933469,1740831043092,-500.0,0.00027397,2]
[354933471,1740831043101,-500.0,0.00027397,2]
[354933474,1740831043111,-2530.46,0.00027397,2]
[354933477,1740831043121,-1031.8,0.00027397,2]
[354933480,1740831043131,-1363.84,0.00027397,2]
[354933482,1740831043140,-500.0,0.00027397,2]
[354933484,1740831043149,-509.40849161,0.00027397,2]
[354933486,1740831043159,-151.0,0.00027397,7]
[354933488,1740831043169,-151.0,0.00027397,7]
[354933490,1740831043179,-157.17447143,0.00027397,2]
[354933492,1740831043189,-151.0,0.00027397,7]
[354933512,1740831043374,-690.45,0.00027397,2]
[354933516,1740831043399,-151.0,0.00027397,7]
[354933518,1740831043410,-500.0,0.00027397,2]
[354933520,1740831043419,-151.0,0.00027397,7]
[354933522,1740831043429,-500.0,0.00027397,2]
[354933524,1740831043438,-151.0,0.00027397,7]
[354933526,1740831043448,-509.8019536,0.00027397,2]
[354933528,1740831043457,-500.0,0.00027397,2]
[354933530,1740831043467,-1175.3,0.00027397,2]
[354933531,1740831043476,-500.0,0.00027397,2]
[354933533,1740831043487,-643.0764294,0.00027397,2]
[354933535,1740831043497,-506.54562154,0.00027397,2]
[354933537,1740831043506,-1095.39,0.00027397,2]
[354933539,1740831043516,-500.0,0.00027397,2]
[354933541,1740831043525,-500.0,0.00027397,2]
[354933543,1740831043535,-508.04281506,0.00027397,2]
[354933545,1740831043545,-1014.65,0.00027397,2]
[354933547,1740831043554,-735.29,0.00027397,2]
[354933549,1740831043564,-500.0,0.00027397,2]
[354933551,1740831043574,-500.0,0.00027397,2]
[354933553,1740831043583,-507.96831506,0.00027397,2]
[354933555,1740831043593,-500.0,0.00027397,2]
[354933557,1740831043602,-500.0,0.00027397,2]
[354933559,1740831043611,-1632.92,0.00027397,2]
[354933560,1740831043621,-500.0,0.00027397,2]
[354933561,1740831043631,-500.0,0.00027397,2]
[354933562,1740831043640,-504.08620678,0.00027397,2]
[354933563,1740831043650,-500.0,0.00027397,2]
[354933564,1740831043659,-500.0,0.00027397,2]
[354933565,1740831043669,-500.0,0.00027397,2]
[354933566,1740831043678,-500.0,0.00027397,2]
[354933567,1740831043688,-505.15558023,0.00027397,2]
[354933568,1740831043697,-500.0,0.00027397,2]
[354933569,1740831043707,-1495.28,0.00027397,2]
[354933570,1740831043716,-500.0,0.00027397,2]
[354933571,1740831043725,-500.0,0.00027397,2]
[354933572,1740831043735,-500.0,0.00027397,2]
[354933573,1740831043744,-500.0,0.00027397,2]
[354933574,1740831043753,-506.3562129,0.00027397,2]
[354933575,1740831043763,-500.0,0.00027397,2]
[354933576,1740831043772,-2000.0,0.00027397,30]
[354933577,1740831043782,-813.67,0.00027397,2]
[354933578,1740831043792,-500.0,0.00027397,2]
[354933579,1740831043801,-500.0,0.00027397,2]
[354933580,1740831043811,-508.74084886,0.00027397,2]
[354933581,1740831043820,-500.0,0.00027397,2]
[354933582,1740831043829,-500.0,0.00027397,2]
[354933583,1740831043839,-500.0,0.00027397,2]
[354933584,1740831043848,-500.0,0.00027397,2]
[354933585,1740831043858,-500.0,0.00027397,2]
[354933586,1740831043868,-849.39,0.00027397,2]
[354933587,1740831043877,-500.0,0.00027397,2]
[354933588,1740831043887,-500.0,0.00027397,2]
[354933590,1740831043896,-500.0,0.00027397,2]
[354933592,1740831043906,-500.0,0.00027397,2]
[354933593,1740831043915,-500.0,0.00027397,2]
[354933595,1740831043925,-500.0,0.00027397,2]
[354933597,1740831043934,-823.43,0.00027397,2]
[354933599,1740831043944,-500.0,0.00027397,2]
[354933601,1740831043953,-500.0,0.00027397,2]
[354933603,1740831043963,-500.0,0.00027397,2]
[354933605,1740831043973,-512.17838662,0.00027397,2]
[354933607,1740831043983,-500.0,0.00027397,2]
[354933609,1740831043992,-500.0,0.00027397,2]
[354933612,1740831044002,-500.0,0.00027397,2]
[354933614,1740831044012,-500.0,0.00027397,2]
[354933616,1740831044022,-2030.74,0.00027397,2]
[354933618,1740831044031,-500.0,0.00027397,2]
[354933620,1740831044041,-510.23790345,0.00027397,2]
[354933622,1740831044050,-864.29,0.00027397,2]
[354933624,1740831044060,-685.9,0.00027397,2]
[354933626,1740831044070,-500.0,0.00027397,2]
[354933628,1740831044079,-503.98907311,0.00027397,2]
[354933630,1740831044089,-504.71925753,0.00027397,2]
[354933632,1740831044098,-937.4,0.00027397,2]
[354933634,1740831044107,-500.0,0.00027397,2]
[354933636,1740831044117,-757.17,0.00027397,2]
[354933638,1740831044127,-500.0,0.00027397,2]
[354933640,1740831044136,-500.0,0.00027397,2]
[354933642,1740831044145,-500.0,0.00027397,2]
[354933643,1740831044155,-1046.39,0.00027397,2]
[354933645,1740831044164,-300.0,0.00027397,2]
[354933648,1740831044174,-509.88458038,0.00027397,2]
[354933650,1740831044184,-500.0,0.00027397,2]
[354933652,1740831044194,-500.0,0.00027397,2]
[354933653,1740831044203,-509.9621732,0.00027397,2]
[354933656,1740831044213,-510.56386552,0.00027397,2]
[354933658,1740831044222,-500.0,0.00027397,2]
[354933660,1740831044234,-759.63,0.00027397,2]
[354933661,1740831044243,-500.0,0.00027397,2]
[354933663,1740831044253,-500.0,0.00027397,2]
[354933666,1740831044264,-500.0,0.00027397,2]
[354933668,1740831044273,-500.0,0.00027397,2]
[354933670,1740831044284,-500.0,0.00027397,2]
[354933672,1740831044293,-500.0,0.00027397,2]
[354933674,1740831044302,-500.0,0.00027397,2]
[354933676,1740831044312,-896.77,0.00027397,2]
[354933678,1740831044321,-500.0,0.00027397,2]
[354933680,1740831044331,-500.0,0.00027397,2]
[354933682,1740831044340,-500.0,0.00027397,2]
[354933684,1740831044350,-500.0,0.00027397,2]
[354933686,1740831044359,-540.66894185,0.00027397,2]
[354933688,1740831044369,-500.0,0.00027397,2]
[354933690,1740831044379,-2297.65,0.00027397,2]
[354933692,1740831044389,-512.80477919,0.00027397,2]
[354933694,1740831044399,-1106.17,0.00027397,2]
[354933696,1740831044408,-500.0,0.00027397,2]
[354933698,1740831044417,-1599.34,0.00027397,2]
[354933700,1740831044427,-500.0,0.00027397,2]
[354933702,1740831044437,-500.0,0.00027397,2]
[354933704,1740831044447,-500.0,0.00027397,2]
[354933706,1740831044457,-504.04274177,0.00027397,2]
[354933708,1740831044466,-500.0,0.00027397,2]
[354933710,1740831044475,-500.0,0.00027397,2]
[354933712,1740831044484,-500.0,0.00027397,2]
[354933714,1740831044494,-500.0,0.00027397,2]
[354933716,1740831044504,-500.0,0.00027397,2]
[354933718,1740831044513,-500.0,0.00027397,2]
[354933720,1740831044523,-500.0,0.00027397,2]
[354933722,1740831044532,-600.0,0.00027397,2]
[354933724,1740831044541,-500.0,0.00027397,2]
[354933726,1740831044550,-808.14,0.00027397,2]
[354933728,1740831044560,-500.0,0.00027397,2]
[354933730,1740831044569,-854.67,0.00027397,2]
[354933732,1740831044578,-1389.88,0.00027397,2]
[354933734,1740831044587,-667.9,0.00027397,2]
[354933736,1740831044597,-504.63176346,0.00027397,2]
[354933738,1740831044607,-500.0,0.00027397,2]
[354933740,1740831044616,-500.0,0.00027397,2]
[354933742,1740831044626,-1660.9,0.00027397,2]
[354933744,1740831044635,-500.0,0.00027397,2]
[354933746,1740831044645,-500.0,0.00027397,2]
[354933748,1740831044654,-508.29384936,0.00027397,2]
[354933750,1740831044663,-1446.69,0.00027397,2]
[354933752,1740831044672,-500.0,0.00027397,2]
[354933754,1740831044683,-500.0,0.00027397,2]
[354933756,1740831044693,-504.78988158,0.00027397,2]
[354933758,1740831044702,-1228.27,0.00027397,2]
[354933760,1740831044711,-500.0,0.00027397,2]
[354933762,1740831044721,-510.83390558,0.00027397,2]
[354933764,1740831044730,-1072.26,0.00027397,2]
[354933766,1740831044739,-500.0,0.00027397,2]
[354933768,1740831044749,-1453.71,0.00027397,2]
[354933770,1740831044758,-940.87,0.00027397,2]
[354933772,1740831044768,-511.85053383,0.00027397,2]
[354933774,1740831044778,-500.0,0.00027397,2]
[354933776,1740831044787,-1532.31,0.00027397,2]
[354933778,1740831044797,-507.86904772,0.00027397,2]
[354933780,1740831044806,-500.0,0.00027397,2]
[354933782,1740831044815,-537.02291506,0.00027397,2]
[354933784,1740831044825,-509.39683146,0.00027397,2]
[354933786,1740831044834,-503.71654189,0.00027397,2]
[354933788,1740831044844,-500.0,0.00027397,2]
[354933790,1740831044853,-500.0,0.00027397,2]
[354933792,1740831044862,-502.29171603,0.00027397,2]
[354933794,1740831044871,-500.0,0.00027397,2]
[354933796,1740831044881,-508.22502438,0.00027397,2]
[354933798,1740831044891,-500.0,0.00027397,2]
[354933800,1740831044901,-511.39877893,0.00027397,2]
[354933802,1740831044910,-500.0,0.00027397,2]
[354933804,1740831044919,-512.16466465,0.00027397,2]
[354933806,1740831044929,-500.0,0.00027397,2]
[354933808,1740831044939,-500.0,0.00027397,2]
[354933810,1740831044948,-500.0,0.00027397,2]
[354933812,1740831044957,-512.42149845,0.00027397,2]
[354933814,1740831044967,-1029.13,0.00027397,2]
[354933816,1740831044976,-500.0,0.00027397,2]
[354933818,1740831044986,-767.38,0.00027397,2]
[354933820,1740831044995,-514.93480045,0.00027397,2]
[354933822,1740831045004,-500.0,0.00027397,2]
[354933824,1740831045014,-1144.51,0.00027397,2]
[354933825,1740831045023,-2148.8,0.00027397,2]
[354933827,1740831045032,-500.0,0.00027397,2]
[354933829,1740831045042,-500.0,0.00027397,2]
[354933831,1740831045051,-650.1,0.00027397,2]
[354933833,1740831045061,-505.13651796,0.00027397,2]
[354933835,1740831045070,-500.0,0.00027397,2]
[354933837,1740831045080,-504.3531605,0.00027397,2]
[354933839,1740831045089,-500.0,0.00027397,2]
[354933841,1740831045099,-500.0,0.00027397,2]
[354933843,1740831045108,-500.0,0.00027397,2]
[354933845,1740831045117,-500.0,0.00027397,2]
[354933847,1740831045127,-502.38731709,0.00027397,2]
[354933850,1740831045137,-500.0,0.00027397,2]
[354933852,1740831045146,-1130.53,0.00027397,2]
[354933854,1740831045156,-1813.76,0.00027397,2]
[354933856,1740831045165,-2447.91,0.00027397,2]
[354933858,1740831045175,-500.0,0.00027397,2]
[354933860,1740831045184,-500.0,0.00027397,2]
[354933862,1740831045194,-500.0,0.00027397,2]
[354933864,1740831045204,-500.0,0.00027397,2]
[354933866,1740831045214,-521.63,0.00027397,2]
[354933868,1740831045223,-500.0,0.00027397,2]
[354933870,1740831045234,-909.69,0.00027397,2]
[354933872,1740831045246,-1567.39,0.00027397,2]
[354933874,1740831045255,-500.0,0.00027397,2]
[354933876,1740831045265,-1063.04,0.00027397,2]
[354933878,1740831045275,-500.0,0.00027397,2]
[354933880,1740831045285,-1441.84,0.00027397,2]
[354933882,1740831045294,-508.36665108,0.00027397,2]
[354933884,1740831045304,-500.0,0.00027397,2]
[354933886,1740831045316,-500.0,0.00027397,2]
[354933888,1740831045326,-762.96,0.00027397,2]
[354933890,1740831045336,-500.0,0.00027397,2]
[354933892,1740831045346,-500.0,0.00027397,2]
[354933894,1740831045356,-500.0,0.00027397,2]
[354933896,1740831045365,-500.0,0.00027397,2]
[354933898,1740831045374,-500.0,0.00027397,2]
[354933900,1740831045384,-595.16,0.00027397,2]
[354933902,1740831045394,-520.95214045,0.00027397,2]
[354933904,1740831045404,-500.0,0.00027397,2]
[354933906,1740831045414,-500.0,0.00027397,2]
[354933908,1740831045423,-1819.8,0.00027397,2]
[354933910,1740831045433,-500.0,0.00027397,2]
[354933912,1740831045442,-1510.89,0.00027397,2]
[354933914,1740831045452,-500.0,0.00027397,2]
[354933916,1740831045461,-500.0,0.00027397,2]
[354933918,1740831045470,-500.0,0.00027397,2]
[354933920,1740831045479,-910.46,0.00027397,2]
[354933922,1740831045489,-751.68,0.00027397,2]
[354933924,1740831045498,-1656.05,0.00027397,2]
[354933926,1740831045507,-501.8004933,0.00027397,2]
[354933928,1740831045517,-500.0,0.00027397,2]
[354933930,1740831045526,-500.0,0.00027397,2]
[354933932,1740831045536,-500.0,0.00027397,2]
[354933934,1740831045545,-756.0,0.00027397,2]
[354933936,1740831045554,-500.0,0.00027397,2]
[354933938,1740831045563,-500.0,0.00027397,2]
[354933940,1740831045573,-1100.51,0.00027397,2]
[354933942,1740831045582,-2114.67,0.00027397,2]
[354933944,1740831045592,-500.0,0.00027397,2]
[354933946,1740831045601,-960.11,0.00027397,2]
[354933948,1740831045610,-627.55681166,0.00027397,2]
[354933950,1740831045620,-500.0,0.00027397,2]
[354933952,1740831045629,-1977.27,0.00027397,2]
[354933954,1740831045639,-979.18,0.00027397,2]
[354933956,1740831045649,-755.73,0.00027397,2]
[354933958,1740831045659,-2486.78,0.00027397,2]
[354933960,1740831045668,-508.39694351,0.00027397,2]
[354933962,1740831045678,-501.36884979,0.00027397,2]
[354933964,1740831045687,-500.0,0.00027397,2]
[354933966,1740831045696,-1351.37,0.00027397,2]
[354933968,1740831045706,-500.0,0.00027397,2]
[354933970,1740831045715,-640.15,0.00027397,2]
[354933972,1740831045724,-501.47118311,0.00027397,2]
[354933974,1740831045734,-500.0,0.00027397,2]
[354933984,1740831045744,-500.0,0.00027397,2]
[354933986,1740831045832,-1352.77,0.00027397,2]
[354933988,1740831045841,-1024.8,0.00027397,2]
[354933990,1740831045851,-1587.77,0.00027397,2]
[354933992,1740831045860,-266.135686,0.00027397,2]
[354933994,1740831045869,-2065.45,0.00027397,2]
[354933996,1740831045878,-500.0,0.00027397,2]
[354933998,1740831045887,-500.0,0.00027397,2]
[354934000,1740831045897,-511.42314566,0.00027397,2]
[354934002,1740831045906,-500.0,0.00027397,2]
[354934004,1740831045915,-3804.02,0.00027397,2]
[354934005,1740831045924,-500.0,0.00027397,2]
[354934008,1740831045933,-1651.93,0.00027397,2]
[354934010,1740831045943,-509.83652119,0.00027397,2]
[354934011,1740831045953,-513.1723592,0.00027397,2]
[354934014,1740831045963,-831.84,0.00027397,2]
[354934016,1740831045973,-1639.48,0.00027397,2]
[354934018,1740831045983,-500.0,0.00027397,2]
[354934020,1740831045992,-500.0,0.00027397,2]
[354934022,1740831046001,-500.0,0.00027397,2]
[354934024,1740831046010,-500.0,0.00027397,2]
[354934026,1740831046020,-500.0,0.00027397,2]
[354934028,1740831046029,-10162.16,0.00027397,2]
[354934030,1740831046039,-500.0,0.00027397,2]
[354934031,1740831046048,-500.0,0.00027397,2]
[354934033,1740831046057,-1481.4,0.00027397,2]
[354934035,1740831046066,-645.54,0.00027397,2]
[354934037,1740831046075,-1466.63,0.00027397,2]
[354934039,1740831046084,-500.0,0.00027397,2]
[354934041,1740831046094,-2572.4,0.00027397,2]
[354934043,1740831046103,-503.18124733,0.00027397,2]
[354934045,1740831046112,-500.0,0.00027397,2]
[354934047,1740831046121,-856.51,0.00027397,2]
[354934049,1740831046130,-500.0,0.00027397,2]
[354934051,1740831046140,-500.0,0.00027397,2]
[354934053,1740831046150,-500.0,0.00027397,2]
[354934055,1740831046158,-500.0,0.00027397,2]
[354934057,1740831046167,-500.0,0.00027397,2]
[354934059,1740831046177,-1775.46,0.00027397,2]
[354934061,1740831046187,-500.0,0.00027397,2]
[354934062,1740831046197,-503.47490639,0.00027397,2]
[354934063,1740831046206,-1541.93,0.00027397,2]
[354934064,1740831046216,-500.0,0.00027397,2]
[354934065,1740831046225,-503.79172072,0.00027397,2]
[354934066,1740831046238,-500.0,0.00027397,2]
[354934067,1740831046247,-500.0,0.00027397,2]
[354934069,1740831046257,-504.79625282,0.00027397,2]
[354934071,1740831046265,-500.0,0.00027397,2]
[354934073,1740831046275,-500.0,0.00027397,2]
[354934075,1740831046285,-2380.61,0.00027397,2]
[354934077,1740831046295,-509.74269939,0.00027397,2]
[354934079,1740831046304,-2223.12,0.00027397,2]
[354934081,1740831046314,-1243.01,0.00027397,2]
[354934083,1740831046324,-582.1,0.00027397,2]
[354934085,1740831046333,-509.08879005,0.00027397,2]
[354934087,1740831046343,-500.0,0.00027397,2]
[354934089,1740831046352,-500.0,0.00027397,2]
[354934091,1740831046361,-500.0,0.00027397,2]
[354934093,1740831046371,-607.79,0.00027397,2]
[354934095,1740831046381,-633.89242252,0.00027397,2]
[354934097,1740831046390,-500.0,0.00027397,2]
[354934099,1740831046400,-5960.83,0.00027397,2]
[354934101,1740831046409,-500.0,0.00027397,2]
[354934103,1740831046418,-561.31,0.00027397,2]
[354934105,1740831046429,-500.0,0.00027397,2]
[354934107,1740831046439,-500.0,0.00027397,2]
[354934109,1740831046448,-500.0,0.00027397,2]
[354934111,1740831046457,-500.0,0.00027397,2]
[354934113,1740831046467,-500.0,0.00027397,2]
[354934115,1740831046476,-500.0,0.00027397,2]
[354934117,1740831046486,-521.60478674,0.00027397,2]
[354934119,1740831046496,-500.0,0.00027397,2]
[354934121,1740831046505,-1748.15,0.00027397,2]
[354934123,1740831046515,-504.41996663,0.00027397,2]
[354934125,1740831046525,-965.29,0.00027397,2]
[354934127,1740831046535,-500.0,0.00027397,2]
[354934129,1740831046545,-1237.38,0.00027397,2]
[354934131,1740831046555,-2445.32,0.00027397,2]
[354934133,1740831046566,-505.86837036,0.00027397,2]
[354934136,1740831046576,-500.0,0.00027397,2]
[354934138,1740831046585,-505.44810824,0.00027397,2]
[354934140,1740831046595,-1490.23,0.00027397,2]
[354934142,1740831046605,-500.0,0.00027397,2]
[354934144,1740831046615,-500.0,0.00027397,2]
[354934146,1740831046625,-912.98,0.00027397,2]
[354934148,1740831046635,-500.0,0.00027397,2]
[354934150,1740831046645,-500.0,0.00027397,2]
[354934152,1740831046654,-910.1,0.00027397,2]
[354934154,1740831046664,-2481.96,0.00027397,2]
[354934156,1740831046674,-500.0,0.00027397,2]
[354934158,1740831046684,-500.0,0.00027397,2]
[354934160,1740831046694,-500.0,0.00027397,2]
[354934162,1740831046703,-2186.36,0.00027397,2]
[354934164,1740831046713,-506.02088328,0.00027397,2]
[354934166,1740831046723,-2559.88,0.00027397,2]
[354934168,1740831046734,-2000.0,0.00027397,4]
[354934170,1740831046744,-1838.55,0.00027397,2]
[354934172,1740831046753,-2053.88,0.00027397,2]
[354934174,1740831046763,-504.5955935,0.00027397,2]
[354934176,1740831046773,-510.92466337,0.00027397,2]
[354934179,1740831046783,-1071.02,0.00027397,2]
[354934181,1740831046793,-500.0,0.00027397,2]
[354934183,1740831046803,-500.0,0.00027397,2]
[354934185,1740831046813,-503.00403674,0.00027397,2]
[354934187,1740831046824,-500.0,0.00027397,2]
[354934189,1740831046836,-500.0,0.00027397,2]
[354934191,1740831046846,-500.0,0.00027397,2]
[354934193,1740831046856,-500.0,0.00027397,2]
[354934195,1740831046866,-500.0,0.00027397,2]
[354934197,1740831046875,-1572.43,0.00027397,2]
[354934199,1740831046885,-500.0,0.00027397,2]
[354934201,1740831046895,-1000.0,0.00027397,2]
[354934203,1740831046905,-4958.84,0.00027397,2]
[354934205,1740831046915,-2047.95,0.00027397,2]
[354934208,1740831046925,-500.0,0.00027397,2]
[354934210,1740831046935,-504.49258798,0.00027397,2]
[354934212,1740831046945,-151.0,0.00027397,7]
[354934214,1740831046954,-157.61893,0.00027397,7]
[354934216,1740831046963,-500.0,0.00027397,2]
[354934218,1740831046973,-500.0,0.00027397,2]
[354934220,1740831046983,-500.0,0.00027397,2]
[354934222,1740831046993,-500.0,0.00027397,2]
[354934224,1740831047002,-500.0,0.00027397,2]
[354934226,1740831047012,-500.0,0.00027397,2]
[354934228,1740831047022,-500.0,0.00027397,2]
[354934230,1740831047032,-500.0,0.00027397,2]
[354934232,1740831047041,-1800.51,0.00027397,2]
[354934234,1740831047051,-10059.63,0.00027397,2]
[354934236,1740831047060,-500.0,0.00027397,2]
[354934238,1740831047070,-500.0,0.00027397,2]
[354934240,1740831047079,-500.0,0.00027397,2]
[354934242,1740831047089,-500.0,0.00027397,2]
[354934244,1740831047098,-500.0,0.00027397,2]
[354934246,1740831047108,-500.0,0.00027397,2]
[354934248,1740831047118,-500.0,0.00027397,2]
[354934250,1740831047127,-594.51,0.00027397,2]
[354934252,1740831047137,-500.0,0.00027397,2]
[354934255,1740831047147,-500.0,0.00027397,2]
[354934257,1740831047156,-1572.32,0.00027397,2]
[354934259,1740831047166,-500.0,0.00027397,2]
[354934261,1740831047176,-500.0,0.00027397,2]
[354934263,1740831047185,-4301.85,0.00027397,2]
[354934265,1740831047195,-500.0,0.00027397,2]
[354934267,1740831047204,-718.13,0.00027397,2]
[354934269,1740831047214,-500.0,0.00027397,2]
[354934271,1740831047223,-1130.79,0.00027397,2]
[354934273,1740831047234,-3010.89,0.00027397,2]
[354934275,1740831047246,-3094.34,0.00027397,2]
[354934277,1740831047255,-503.52448754,0.00027397,2]
[354934279,1740831047265,-500.0,0.00027397,2]
[354934281,1740831047275,-151.0,0.00027397,7]
[354934283,1740831047286,-934.63,0.00027397,2]
[354934285,1740831047295,-153.675818,0.00027397,7]
[354934287,1740831047305,-500.0,0.00027397,2]
[354934289,1740831047317,-954.16,0.00027397,2]
[354934291,1740831047327,-500.0,0.00027397,2]
[354934293,1740831047337,-980.88,0.00027397,2]
[354934295,1740831047347,-500.0,0.00027397,2]
[354934297,1740831047357,-502.00887055,0.00027397,2]
[354934300,1740831047366,-500.0,0.00027397,2]
[354934302,1740831047376,-500.0,0.00027397,2]
[354934304,1740831047386,-1247.56,0.00027397,2]
[354934306,1740831047395,-2706.86,0.00027397,2]
[354934308,1740831047405,-500.0,0.00027397,2]
[354934310,1740831047415,-500.0,0.00027397,2]
[354934312,1740831047425,-910.77,0.00027397,2]
[354934314,1740831047436,-3235.66,0.00027397,2]
[354934316,1740831047445,-500.0,0.00027397,2]
[354934318,1740831047455,-500.0,0.00027397,2]
[354934320,1740831047465,-500.0,0.00027397,2]
[354934322,1740831047474,-988.22,0.00027397,2]
[354934324,1740831047484,-503.82192565,0.00027397,2]
[354934326,1740831047494,-3896.82,0.00027397,2]
[354934328,1740831047504,-1719.03,0.00027397,2]
[354934330,1740831047513,-1763.9,0.00027397,2]
[354934332,1740831047523,-2619.07,0.00027397,2]
[354934334,1740831047533,-500.0,0.00027397,2]
[354934336,1740831047543,-3533.59,0.00027397,2]
[354934338,1740831047553,-1109.92,0.00027397,2]
[354934340,1740831047563,-876.03,0.00027397,2]
[354934343,1740831047573,-904.85,0.00027397,2]
[354934345,1740831047582,-500.0,0.00027397,2]
[354934347,1740831047592,-348.56855885,0.00027397,2]
[354934349,1740831047602,-500.0,0.00027397,2]
[354934351,1740831047613,-500.0,0.00027397,2]
[354934353,1740831047622,-1312.22,0.00027397,2]
[354934355,1740831047632,-1109.37,0.00027397,2]
[354934357,1740831047641,-500.0,0.00027397,2]
[354934359,1740831047651,-2715.2,0.00027397,2]
[354934361,1740831047662,-500.0,0.00027397,2]
[354934363,1740831047671,-3023.4,0.00027397,2]
[354934365,1740831047682,-3064.49,0.00027397,2]
[354934367,1740831047694,-500.0,0.00027397,2]
[354934369,1740831047704,-500.0,0.00027397,2]
[354934372,1740831047714,-49074.74,0.00027397,2]
[354934374,1740831047724,-500.0,0.00027397,2]
[354934376,1740831047734,-526.74782146,0.00027397,2]
[354934378,1740831047744,-500.0,0.00027397,2]
[354934380,1740831047754,-500.0,0.00027397,2]
[354934382,1740831047764,-500.0,0.00027397,2]